Cogmind - Beta 16 --- EXPLORER MODE // 2025.12.12 @ 10:28:20 Player: K.K.Y. Result: Destroyed by G-67 Veteran with Plasma Rifle Performance ------------- Evolutions (4) 2000 Regions Visited (8) 1600 Robots Destroyed (106) 530 Value Destroyed (4129) 4129 Prototype IDs (18) 360 Alien Tech Used (0) 0 Bonus (2256) 2256 TOTAL SCORE: 10875 Bonus ------- Follower Combat Kills 256 Delivered SUBCON Basin 2000 Cogmind --------- Core Integrity 0/850 Matter 222/300 Energy 365/365 System Corruption 13% Temperature Cool (66) Movement Walking (262) Ox2 Location -6/Lower Caves Parts ------- > --- POWER (2) -------- Light Angular Momentum Engine Neutrino Core > --- PROPULSION (5) --- Carbon-fiber Leg Carbon-fiber Leg Improved Carbon-fiber Leg Improved Titanium Leg Flexi-carbon Leg > --- UTILITY (6) ------ Cargo Storage Unit Core Shielding Improved Medium Armor Plating Improved Medium Armor Plating Graphene Brace > --- WEAPON (3) ------- Gauss Rifle Coil Gun Powered Hammer > --- INVENTORY (30) --- Reinforced Deuterium Engine Improved Medium Treads Carbon-fiber Leg Wheel Cesium-ion Thruster Advanced Heat Sink High-capacity Storage Unit Huge Storage Unit Light Humpback Advanced Sensor Array IFF Parser Transmission Jammer Hacking Suite System Shield Improved System Shield Authchip [Power] Authchip [Device] Tech Extrapolator Dynamic Insulation System Amulet of Y3-NDR Phase Cannon Phase Cannon Powered Cannon Remote Datajack Plasma Cutter Multitool Chainsword Chainsword Peak State ------------ > --- POWER ------------ Angular Momentum Engine Angular Momentum Engine > --- PROPULSION ------- Carbon-fiber Leg Flexi-carbon Leg Flexi-carbon Leg Flexi-carbon Leg > --- UTILITY ---------- Cargo Storage Unit Improved Trap Scanner Advanced Signal Interpreter Graphene Brace EM Shield > --- WEAPON ----------- Improved Heavy Laser Minigun Minigun > --- INVENTORY -------- Reinforced Deuterium Engine Improved Medium Treads Wheel Cesium-ion Thruster Advanced Heat Sink High-capacity Storage Unit Huge Storage Unit Light Humpback Advanced Sensor Array IFF Parser Transmission Jammer Improved Reaction Control System Hacking Suite System Shield Improved System Shield Authchip [Power] Authchip [Device] Tech Extrapolator Dynamic Insulation System Plasma Cannon Phase Cannon Powered Cannon Remote Datajack Remote Datajack Plasma Cutter Multitool Powered Hammer Chainsword [Rating: 75] Favorites ----------- Power Makeshift Power Source Engine Makeshift Power Source Power Core Light Nuclear Core Propulsion Advanced Treads Treads Advanced Treads Leg Carbon-fiber Leg Wheel Subdweller Monowheel Hover Unit Gravmag System Flight Unit Flight Unit Utility Cargo Storage Unit Device Graphene Brace Storage Cargo Storage Unit Processor Advanced Signal Interpreter Hackware Makeshift System Shield Protection Improved Core Shielding Weapon Heavy Machine Gun Energy Gun Medium Laser Energy Cannon Proton Cannon Ballistic Gun Heavy Machine Gun Launcher Subdweller Shrapnel Launcher Special Weapon Mining Laser Impact Weapon Powered Hammer Build | -11 -10 -10 -10 -8 -8 -6 -6 -6 ------- Run | Yrd Mat Min Sub Rec Scr Fac Low Low Slots Evolved 9 | . 1 . . . . 8 . . Power 1 | . . . . . . 1 . . Propulsion 3 | . 1 . . . . 2 . . Utility 4 | . . . . . . 4 . . Weapon 1 | . . . . . . 1 . . Parts Attached 127 | 4 12 2 26 5 3 50 18 7 Power 21 | . 4 . 2 . . 8 6 1 Engine 14 | . 4 . 1 . . 7 2 . Core 7 | . . . 1 . . 1 4 1 Reactor . | . . . . . . . . . Propulsion 41 | . 5 2 10 4 . 14 4 2 Treads 7 | . . . . 4 . 3 . . Leg 13 | . . . . . . 8 3 2 Wheel 13 | . 2 . 10 . . 1 . . Hover 1 | . . . . . . 1 . . Flight 7 | . 3 2 . . . 1 1 . Utility 31 | 2 1 . 6 . . 14 6 2 Device 14 | 1 1 . 3 . . 7 1 1 Storage 4 | . . . 3 . . 1 . . Processor 6 | 1 . . . . . 4 1 . Hackware 1 | . . . . . . . 1 . Protection 6 | . . . . . . 2 3 1 Artifact . | . . . . . . . . . Weapon 34 | 2 2 . 8 1 3 14 2 2 Energy Gun 8 | 2 2 . 3 . . 1 . . Energy Cannon 1 | . . . . . . 1 . . Ballistic Gun 19 | . . . 4 . . 11 2 2 Ballistic Cannon . | . . . . . . . . . Launcher 1 | . . . . . 1 . . . Special Weapon 3 | . . . 1 1 . 1 . . Impact Weapon 2 | . . . . . 2 . . . Slashing Weapon . | . . . . . . . . . Piercing Weapon . | . . . . . . . . . Special Melee Weapon . | . . . . . . . . . Unidentified Prototypes 4 | . . . 1 . . 2 . 1 Parts Lost 40 | . 1 . 7 . . 25 4 3 Power 5 | . . . 1 . . 4 . . Propulsion 13 | . . . 2 . . 9 1 1 Utility 7 | . . . . . . 4 2 1 Weapon 15 | . 1 . 4 . . 8 1 1 Highest Loss Streak 6 | . 1 . 4 . . 6 3 2 To Critical Strikes . | . . . . . . . . . Average Backups 20 | 2 4 4 8 21 26 27 28 27 Power . | . . . . 1 . . 1 1 Propulsion 2 | . . . 2 4 3 2 3 3 Utility 9 | . 2 3 3 6 12 13 15 15 Weapon 5 | . 1 1 1 7 6 7 5 5 Tool/Special . | . . . . . . . . . Unused Backups 41 | . 1 . 4 . 6 7 1 22 Power 3 | . . . 1 . 1 . . 1 Propulsion 2 | . . . . . . . . 2 Utility 18 | . 1 . 1 . 2 1 . 13 Weapon 14 | . . . 1 . 3 5 . 5 Tool/Special 4 | . . . 1 . . 1 1 1 Average Slot Usage (%) 84 | . 97 100 92 78 79 75 91 90 Engine 9 | . 11 12 11 12 12 7 6 6 Treads 12 | . . . . 26 37 8 . . Leg 7 | . . . . . . 11 29 30 Wheel 5 | . 1 . 29 8 . . . . Flight 5 | . 33 37 6 . . . . . Device 8 | . 20 25 11 . . 10 10 5 Storage 7 | . . . 8 12 12 6 6 6 Processor 3 | . 3 . . . . 11 4 . Protection 1 | . . . . . . . 6 17 Energy Gun 3 | . 24 25 4 . . . . . Energy Cannon 1 | . . . . . . 1 4 . Ballistic Gun 10 | . . . 18 18 3 11 12 15 Impact Weapon 3 | . . . . . 14 3 . 1 Peak Build Rating 75 | 4 12 12 41 37 29 75 74 75 Average Rating 39 | 3 10 12 30 24 25 60 70 71 On Entrance 28 | . 4 12 12 37 23 29 67 71 Avg Prop Armor Cover (%) 4 | . 6 . 3 . . 6 1 . Naked Turns . | . . . . . . . . . Heaviest Build 191 | 4 12 12 150 150 150 182 187 191 Greatest Support 122 | 3 20 12 60 64 64 122 83 88 Greatest Overweight (x) 54 | 1 3 . 4 7 2 54 2 2 Average Overweight (x) 1 | . . . 1 2 2 2 2 2 Largest Inventory Capacity 30 | 5 5 5 30 30 30 30 30 30 Average Capacity 25 | 5 5 5 20 30 30 30 30 30 Most Carried 30 | 5 5 5 30 30 30 30 30 30 Average Carried 24 | 2 4 5 19 25 28 29 29 29 Final Capacity 30 | 5 5 5 30 30 30 30 30 30 Final Carried 30 | 5 5 5 30 30 30 30 30 30 Class Distribution -------------------- 41% | Hauler-Mutant 21% | Hacker-Mutant 18% | Scavenger-Tank 7% | Hauler-Tank 7% | Hauler-Gladiator Dominant Class ---------------- Hacker-Mutant | -10/Materials Hacker-Mutant | -10/Mines Hacker-Mutant | -10/Subcaves Hauler-Mutant | -8/Recycling Hauler-Mutant | -8/Scraptown Hauler-Tank | -6/Factory Scavenger-Tank | -6/Lower Caves Scavenger-Tank | -6/Lower Caves Resources | -11 -10 -10 -10 -8 -8 -6 -6 -6 ----------- Run | Yrd Mat Min Sub Rec Scr Fac Low Low Matter Collected 4060 | 240 177 14 709 120 30 1740 738 292 Remotely . | . . . . . . . . . Salvage Created 4848 | 71 361 . 315 248 . 2870 667 316 Parts 247 | 8 19 . 33 11 . 126 32 18 Haulers Intercepted 3 | . 2 . . . . 1 . . Recyclers Shooed 3 | . . . . . . 3 . . Parts Field Recycled . | . . . . . . . . . Retrieved Matter . | . . . . . . . . . Parts Self-Destructed . | . . . . . . . . . Prevented . | . . . . . . . . . Parts Restored 6 | . 6 . . . . . . . Broken 6 | . 6 . . . . . . . Kills | -11 -10 -10 -10 -8 -8 -6 -6 -6 ------- Run | Yrd Mat Min Sub Rec Scr Fac Low Low Combat Hostiles Destroyed 80 | . 5 1 9 . . 45 14 6 Melee 2 | . . . . . . 2 . . Guns 63 | . 4 1 9 . . 35 8 6 Cannons 8 | . . . . . . 2 6 . Classes Destroyed 22 | 2 4 1 4 1 . 9 1 . Worker 5 | . . . . . . 5 . . Builder 1 | . . . . 1 . . . . Tunneler 1 | 1 . . . . . . . . Hauler 3 | . 2 . . . . 1 . . Recycler 8 | 1 . . . 4 . 3 . . Mechanic 2 | . 1 . . . . 1 . . Operator 1 | . . . . . . 1 . . Turret 2 | . . . 2 . . . . . Watcher 3 | . 2 . . . . 1 . . Swarmer 13 | . . . 2 . . 4 6 1 Grunt 26 | . 5 . . . . 17 3 1 Brawler 2 | . . . . . . . 1 1 Duelist 4 | . . . . . . 1 2 1 Protector 2 | . . . . . . 2 . . Sentry 3 | . . . . . . 1 1 1 Demolisher 1 | . . 1 . . . . . . Specialist 2 | . . . . . . 2 . . Hunter 7 | . . . . . . 6 . 1 Programmer 11 | . . . . . . 10 1 . Heavy 2 | . . . . . . 2 . . Artisan 1 | . . . 1 . . . . . Subdweller 7 | . . . 7 . . . . . Best Kill Streak 13 | 2 2 1 4 4 . 13 5 5 Combat Bots Only 6 | . 2 1 3 . . 6 5 5 Max Kills in Single Turn 2 | 1 1 1 1 2 . 2 2 1 Gunslinging 1 | . . . . . . 1 1 . Exploded . | . . . . . . . . . Melee 1 | . . . . . . 1 . . Uniques/NPCs Destroyed . | . . . . . . . . . Combat | -11 -10 -10 -10 -8 -8 -6 -6 -6 -------- Run | Yrd Mat Min Sub Rec Scr Fac Low Low Hostile Shots Fired 787 | . 21 . 72 7 . 562 61 64 Missed 220 | . 3 . 23 3 . 163 13 15 Hits 567 | . 18 . 49 4 . 399 48 49 Melee 24 | . . . . . . 1 10 13 Projectile 543 | . 18 . 49 4 . 398 38 36 AOE 3 | . . . 2 1 . . . . Critical Strikes 29 | . 1 . . . . 17 4 7 Actively Blocked 14 | . . . . . . 3 4 7 Part Disruptions 1 | . . . . . . 1 . . Damage Taken 6976 | . 165 . 566 62 . 4840 615 728 Core 1068 | . 49 . 159 5 . 730 41 84 Absorbed by Shields . | . . . . . . . . . Redirected to Shielding 35 | . . . . . . . 12 23 Ignored by Resistances 4042 | . 101 . 341 37 . 2770 364 429 Regen/Repaired (Parts) 758 | . . . . . 758 . . . Core Remaining (%) 57 | 100 . . . . 14 . . . Volleys Fired 361 | 5 30 2 101 9 . 160 31 23 Largest 3 | 2 2 2 2 2 . 3 3 3 Hottest 150 | 90 115 115 150 54 . 130 133 88 Shots Fired 708 | 10 56 4 149 18 . 326 93 52 Gun 668 | 10 56 4 146 18 . 309 73 52 Cannon 37 | . . . . . . 17 20 . Launcher . | . . . . . . . . . Special 3 | . . . 3 . . . . . Kinetic 547 | . . . 104 18 . 300 73 52 Thermal 124 | 10 56 4 45 . . 9 . . Explosive . | . . . . . . . . . Electromagnetic 37 | . . . . . . 17 20 . Robot Hit Streak 56 | 2 12 8 40 16 . 56 15 32 Robot Miss Streak 6 | 2 2 1 1 1 . 2 6 2 Penetration Max 1 | . . . . . . 1 . 1 Secondary Targets 11 | . . . 1 . . 7 1 2 Max Gunslinging Chain 1 | . . . 1 . . 1 1 1 Shots Hit Robots 538 | 5 45 3 57 13 . 312 54 49 Core Hits 228 | 3 18 1 19 7 . 139 24 17 Critical Kills 2 | . . . 1 . . 1 . . Critical Parts Destroyed 8 | . . . . . . 5 1 2 Critical Strikes 18 | . 6 . 2 . . 7 1 2 Burn 7 | . 6 . 1 . . . . . Destroy 6 | . . . 1 . . 3 1 1 Corrupt 1 | . . . . . . 1 . . Smash 4 | . . . . . . 3 . 1 Melee Attacks 39 | . . . . . . 34 . 5 Impact 39 | . . . . . . 34 . 5 Slashing . | . . . . . . . . . Piercing . | . . . . . . . . . Sneak Attacks 2 | . . . . . . 2 . . Combat Hostiles . | . . . . . . . . . Follow-up Attacks 6 | . . . . . . 6 . . Damage Inflicted 11893 | 58 641 38 784 361 . 7841 1179 991 Guns 9169 | 58 639 38 760 339 . 5776 804 755 Cannons 590 | . . . . . . 215 375 . Explosions 176 | . . . . . . 176 . . Melee 1910 | . . . . . . 1674 . 236 Ramming 24 | . 2 . . 22 . . . . Kinetic 7740 | . . . 268 339 . 5574 804 755 Thermal 1629 | 58 639 38 516 . . 378 . . Explosive . | . . . . . . . . . Electromagnetic 590 | . . . . . . 215 375 . Impact 1910 | . . . . . . 1674 . 236 Slashing . | . . . . . . . . . Piercing . | . . . . . . . . . Highest Corruption 13 | . 1 1 1 . . 8 13 13 Average Corruption 5 | . 1 1 1 . . 5 7 13 Corruption Purged 1 | . . . 1 . . . . . Corruption Blocked . | . . . . . . . . . Effects 195 | . . 4 6 . . 97 75 13 Message Errors 43 | . . . . . . 24 15 4 Matter Fused 52 | . . 2 3 . . 23 22 2 Heat Flow Errors 22 | . . . 1 . . 14 7 . Energy Discharges 21 | . . 1 1 . . 8 11 . Parts Rejected 3 | . . . . . . 3 . . Parts Fused 2 | . . . . . . 2 . . Data Loss (minor) 22 | . . 1 . . . 11 8 2 Data Loss (major) 8 | . . . 1 . . 2 4 1 Misfires 12 | . . . . . . 5 6 1 Alerts 3 | . . . . . . 1 1 1 Weapon Failures 7 | . . . . . . 4 1 2 Overload Shots . | . . . . . . . . . Overflow Damage 485 | . . . . . . 468 . 17 Projectiles . | . . . . . . . . . Explosions 6 | . . . . . . 6 . . Melee 479 | . . . . . . 462 . 17 Knockbacks 7 | . . . . . . 7 . . Impact 6 | . . . . . . 6 . . Kinetic . | . . . . . . . . . Secondary 1 | . . . . . . 1 . . Self-Inflicted Damage 33 | . 1 . . . . 32 . . Shots 1 | . . . . . . 1 . . Rammed 2 | . 1 . . 1 . . . . Targets Rammed 2 | . 1 . . 1 . . . . Kicked . | . . . . . . . . . Crushed . | . . . . . . . . . Highest Temperature 644 | 60 644 126 57 36 . 563 546 134 Average Temperature 113 | 27 192 64 6 15 . 81 172 68 Received Heat Transfer 1884 | . 162 . 243 9 . 1230 72 168 Effects 41 | . 18 . . . . 14 9 . Shutdowns 8 | . 2 . . . . 1 5 . Energy Bleed 3 | . 1 . . . . 1 1 . Interference 5 | . 1 . . . . 4 . . Matter Decay 5 | . 3 . . . . . 2 . Short Circuit 9 | . 6 . . . . 3 . . Damage (minor) 2 | . 1 . . . . . 1 . Damage (major) 7 | . 4 . . . . 3 . . Damage (core) 2 | . . . . . . 2 . . Siege Activations . | . . . . . . . . . Martial Activations . | . . . . . . . . . Shielding Activations . | . . . . . . . . . Robots Disrupted . | . . . . . . . . . Combat Hostiles . | . . . . . . . . . Robots Corrupted 8 | . . . . . . 8 . . Combat Hostiles 6 | . . . . . . 6 . . Parts Fried 14 | . . . . . . 12 2 . Impact Corruptions 22 | . . . . . . 20 . 2 Robots Melted 1 | . 1 . . . . . . . Combat Hostiles 1 | . 1 . . . . . . . Parts Melted 8 | . 6 . 2 . . . . . Heat Transferred 4186 | 149 2183 111 1297 . . 446 . . Parts Sabotaged . | . . . . . . . . . Parts Stolen . | . . . . . . . . . Parts Stripped . | . . . . . . . . . Power Chain Reactions 1 | . . . . . . 1 . . Alert | -11 -10 -10 -10 -8 -8 -6 -6 -6 ------- Run | Yrd Mat Min Sub Rec Scr Fac Low Low Maximum Alert Level . | . . . . . . . . . Low Security (%) 100 | 100 100 100 . 100 . 100 . . Level 1 . | . . . . . . . . . Level 2 . | . . . . . . . . . Level 3 . | . . . . . . . . . Level 4 . | . . . . . . . . . Level 5 . | . . . . . . . . . High Security . | . . . . . . . . . Max Security . | . . . . . . . . . Peak Influence 135 | 5 35 30 . 104 . 135 . . Initial 4 | . . 4 . . . . . . Average 6 | 1 1 1 . 3 . 10 . . Influence Increases 2305 | 10 175 30 140 200 . 1280 310 160 Destroy 0b10 Robot/C 1580 | . 100 20 80 100 . 880 280 120 Destroy 0b10 Robot/NC 170 | 10 25 . . 65 . 70 . . Destroy Leader 312 | . 28 10 . . . 234 30 10 Allied During Kill 6 | . . . . 5 . 1 . . Successful Hack 34 | . 5 . . 7 . 22 . . Disable Machine 4 | . . . . . . 4 . . Destroy Structure 49 | . 2 . . 23 . 24 . . Partial Spotted 15 | . 15 . . . . . . . Lose Combat Pursuer 135 | . . . 60 . . 45 . 30 Influence Decreases 2270 | 10 160 45 140 200 . 1280 270 165 Entered New Map 26 | . . 11 . . . . . 15 Time Decay 1935 | 10 150 34 100 200 . 1091 230 120 Lost Part 221 | . 10 . . . . 141 40 30 Lost Ally 88 | . . . 40 . . 48 . . Squads Dispatched 16 | . 1 . . . . 14 . 1 Investigation 4 | . 1 . . . . 3 . . Extermination 8 | . . . . . . 8 . . Reinforcement 3 | . . . . . . 3 . . Assault 1 | . . . . . . . . 1 Garrison . | . . . . . . . . . Intercept . | . . . . . . . . . Searches Triggered . | . . . . . . . . . Construction Impeded . | . . . . . . . . . Haulers Reinforced . | . . . . . . . . . Active Scanning Responses . | . . . . . . . . . Cargo Convoy Interrupts 1 | . . . . . . 1 . . Stealth | -11 -10 -10 -10 -8 -8 -6 -6 -6 --------- Run | Yrd Mat Min Sub Rec Scr Fac Low Low Distress Signals 3 | . 1 . . . . 2 . . Communications Jammed . | . . . . . . . . . Distress Signals . | . . . . . . . . . Times Spotted 148 | . 14 9 19 4 . 74 14 14 Peak Tracking Total 18 | . 3 18 4 2 . 7 5 7 Tactical Retreats 7 | . . 1 2 . . 2 . 2 Traps | -11 -10 -10 -10 -8 -8 -6 -6 -6 ------- Run | Yrd Mat Min Sub Rec Scr Fac Low Low Traps Triggered 2 | . 1 . . . . 1 . . Indirectly . | . . . . . . . . . Trap Hack Attempts . | . . . . . . . . . Triggered . | . . . . . . . . . Disarmed . | . . . . . . . . . Reprogrammed . | . . . . . . . . . Reused . | . . . . . . . . . Traps Extracted . | . . . . . . . . . Installed . | . . . . . . . . . Triggered . | . . . . . . . . . Machines | -11 -10 -10 -10 -8 -8 -6 -6 -6 ---------- Run | Yrd Mat Min Sub Rec Scr Fac Low Low Machines Disabled 3 | . . . 2 . . 1 . . Max in Single Turn 1 | . . . 1 . . 1 . . Garrison Access 1 | . . . . . . 1 . . Machines Repaired . | . . . . . . . . . Machines Dismantled . | . . . . . . . . . Machines Sabotaged . | . . . . . . . . . Overloaded Fab Kills . | . . . . . . . . . Hacking | -11 -10 -10 -10 -8 -8 -6 -6 -6 --------- Run | Yrd Mat Min Sub Rec Scr Fac Low Low Machines Accessed 23 | . 5 . 4 7 1 6 . . Terminals 10 | . 3 . . 3 . 4 . . Fabricators . | . . . . . . . . . Repair Stations . | . . . . . . . . . Recycling Units 6 | . 2 . . 4 . . . . Scanalyzers 1 | . . . . . . 1 . . Garrison Access 1 | . . . . . . 1 . . Total Hacks 73 | . 17 . 16 16 8 16 . . Successful 49 | . 7 . 16 12 8 6 . . Failed 24 | . 10 . . 4 . 10 . . Catastrophic 3 | . 1 . . . . 2 . . Database Lockouts . | . . . . . . . . . Manual 22 | . 10 . . 8 . 4 . . Terminals 25 | . 10 . . 5 . 10 . . Fabricators . | . . . . . . . . . Repair Stations . | . . . . . . . . . Recycling Units 18 | . 7 . . 11 . . . . Scanalyzers 3 | . . . . . . 3 . . Garrison Access 3 | . . . . . . 3 . . Terminal Hacks 27 | . . . 16 2 8 1 . . Record 21 | . . . 13 . 8 . . . Part Schematic 1 | . . . . 1 . . . . Robot Analysis 1 | . . . . . . 1 . . Prototype ID Bank 1 | . . . . 1 . . . . Open Door 1 | . . . 1 . . . . . Proto ID Catalog 1 | . . . 1 . . . . . Release Object 1 | . . . 1 . . . . . Fabricator Hacks . | . . . . . . . . . Repair Station Hacks . | . . . . . . . . . Recycling Unit Hacks 8 | . 5 . . 3 . . . . Report Inventory 1 | . 1 . . . . . . . Retrieve Matter 1 | . 1 . . . . . . . Retrieve Components 6 | . 3 . . 3 . . . . Scanalyzer 3 | . . . . . . 3 . . Insert Component 1 | . . . . . . 1 . . Analyze 2 | . . . . . . 2 . . Garrison Access Hacks 1 | . . . . . . 1 . . Seal Access 1 | . . . . . . 1 . . Unauthorized Hacks 10 | . 2 . . 7 . 1 . . Terminals 6 | . 2 . . 3 . 1 . . Botnet 6 | . 2 . . 3 . 1 . . Fabricators . | . . . . . . . . . Repair Stations . | . . . . . . . . . Recycling Units 4 | . . . . 4 . . . . Reject 4 | . . . . 4 . . . . Scanalyzers . | . . . . . . . . . Garrison Access . | . . . . . . . . . Data Cores Recovered . | . . . . . . . . . Used . | . . . . . . . . . Hacking Detections 12 | . 3 . . 4 . 5 . . Full Trace Events 6 | . 2 . . 1 . 3 . . Feedback Events . | . . . . . . . . . Feedback Blocked . | . . . . . . . . . Robot Schematics Acquired . | . . . . . . . . . Robots Built . | . . . . . . . . . Authchips . | . . . . . . . . . Time . | . . . . . . . . . Total Robot Build Rating . | . . . . . . . . . Part Schematics Acquired 2 | . . . . 1 . 1 . . Parts Built . | . . . . . . . . . Authchips . | . . . . . . . . . Time . | . . . . . . . . . Total Part Build Rating . | . . . . . . . . . Part Studies Acquired . | . . . . . . . . . Parts Repaired . | . . . . . . . . . Time . | . . . . . . . . . Parts Recycled . | . . . . . . . . . Recycled Matter . | . . . . . . . . . Retrieved Matter 84 | . 84 . . . . . . . Retrieved Components 27 | . 13 . . 14 . . . . Parts Scanalyzed 1 | . . . . . . 1 . . Part Schematics Acquired 1 | . . . . . . 1 . . Parts Damaged . | . . . . . . . . . Bothacking | -11 -10 -10 -10 -8 -8 -6 -6 -6 ------------ Run | Yrd Mat Min Sub Rec Scr Fac Low Low Used RIF Installer . | . . . . . . . . . Robots Hacked . | . . . . . . . . . Non-combat . | . . . . . . . . . Combat . | . . . . . . . . . Robot Hacks Applied . | . . . . . . . . . Relay Couplers Released . | . . . . . . . . . Fabnet Peak Effective % . | . . . . . . . . . Robots Rewired 2 | . . . . 2 . . . . Allies Hacked . | . . . . . . . . . Hacks Repelled . | . . . . . . . . . Allies | -11 -10 -10 -10 -8 -8 -6 -6 -6 -------- Run | Yrd Mat Min Sub Rec Scr Fac Low Low Total Allies 12 | . . 3 7 2 . . . . Largest Group 5 | . . 3 4 5 5 5 . . Highest-Rated Group 81 | . . 40 76 81 81 81 . . Highest-Rated Ally 19 | . . 16 19 19 19 19 . . Total Orders . | . . . . . . . . . Ally Attacks 54 | . . . 31 12 . 11 . . Total Damage 1154 | . . . 273 657 . 224 . . Kills 11 | . . . 1 9 . 1 . . Allies Corrupted . | . . . . . . . . . Allies Melted . | . . . . . . . . . Intel | -11 -10 -10 -10 -8 -8 -6 -6 -6 ------- Run | Yrd Mat Min Sub Rec Scr Fac Low Low Active Infowar (turns) 3737 | 73 842 543 715 . . 1564 . . Sensors 2940 | 73 842 543 670 . . 812 . . Terrain 350 | . . . . . . 350 . . Traps 447 | . . . 45 . . 402 . . Robot Analysis Total 1 | . . . . . . 1 . . Derelict Logs Recovered 6 | . . . . . 5 . 1 . Drone Launches . | . . . . . . . . . Drone Recoveries . | . . . . . . . . . Exploration | -11 -10 -10 -10 -8 -8 -6 -6 -6 ------------- Run | Yrd Mat Min Sub Rec Scr Fac Low Low Turns Passed 19685 | 81 1663 543 3004 2592 4004 4716 2785 297 Spaces Moved 8380 | 57 690 626 2407 1025 1239 1240 1020 76 Core 192 | 57 132 . . . . 3 . . Treads 2233 | . . . . 579 1239 415 . . Legs 1896 | . . . . . . 800 1020 76 Wheels 2367 | . 102 . 1798 446 . 21 . . Hover . | . . . . . . . . . Flight 1692 | . 456 626 609 . . 1 . . Fastest Speed 34 | 50 34 34 34 129 310 232 260 262 Average Speed 195 | 85 102 34 104 239 310 303 260 262 Slowest Speed 2750 | 100 200 34 200 385 310 2750 262 262 Overloaded Moves . | . . . . . . . . . Propulsion Burnouts . | . . . . . . . . . Robots Hopped 6 | . 2 3 1 . . . . . Potential Cave-ins . | . . . . . . . . . Cave-ins Triggered . | . . . . . . . . . Exploration Rate (%) 60 | 5 79 100 68 99 56 26 98 13 Regions Visited 8 Branch Regions 6 Pre-discovered Areas 2 | . . 1 . . 1 . . . Known Exits Taken 8 | 1 1 1 1 1 1 1 1 . Unknown Exits Taken . | . . . . . . . . . Scrap Searched 15 | . . . 7 . 3 . 5 . Spaces Dug . | . . . . . . . . . Terrain Destroyed 7 | . . . . . . 5 . 2 Melee . | . . . . . . . . . Projectile 3 | . . . . . . 1 . 2 AOE 4 | . . . . . . 4 . . Terrain Rammed . | . . . . . . . . . Walls Destroyed . | . . . . . . . . . Machines Disabled . | . . . . . . . . . Actions | -11 -10 -10 -10 -8 -8 -6 -6 -6 --------- Run | Yrd Mat Min Sub Rec Scr Fac Low Low Total 11021 | 79 1590 949 2746 1149 1413 1881 1093 121 Wait 1858 | 5 847 321 115 83 140 340 7 . Move 8360 | 56 685 619 2404 1024 1238 1239 1019 76 Hop 6 | . 2 3 1 . . . . . Pick Up 133 | 9 3 . 55 14 15 34 2 1 Fast Attach 49 | . 7 . 8 . 1 20 9 4 Attach 45 | 4 3 . 7 3 2 25 . 1 Detach 16 | . 1 . 3 4 2 4 1 1 Swap 54 | . 3 2 22 3 . 9 11 4 Drop 97 | . 8 2 30 2 14 22 13 6 Fire 361 | 5 30 2 101 9 . 160 31 23 Melee 33 | . . . . . . 28 . 5 Ram 1 | . 1 . . . . . . . Kick . | . . . . . . . . . Crush 1 | . . . . 1 . . . . Escape Stasis . | . . . . . . . . . Rewire 7 | . . . . 6 1 . . . Trap . | . . . . . . . . . Miscellaneous . | . . . . . . . . . Route ------- -11/Scrapyard -10/Materials (discovered 3 exits: *Mat x2 / *Min) -10/Mines (discovered 3 exits: *Mat x2 / *Sub) -10/Subcaves (discovered 4 exits: *Mat x2 / *Rec / *Scr) -8/Recycling (discovered 2 exits: *Fac / *Scr) -8/Scraptown -6/Factory (discovered 3 exits: *Fac x2 / *Low) -6/Lower Caves -6/Lower Caves History --------- Turn | Location | Event 2 | -11/Scrapyard | Identified exit to Materials 2 | -11/Scrapyard | Discovered exit to Materials (range 16) 82 | -11/Scrapyard | Entered Materials 82 | -10/Materials | Evolved 1 slot: Propulsion x1 244 | -10/Materials | Identified exit to Materials 244 | -10/Materials | Discovered exit to Materials (range 10) 308 | -10/Materials | Build established: Hacker-Mutant 1394 | -10/Materials | Identified exit to Mines 1394 | -10/Materials | Discovered exit to Mines (range 7) 1639 | -10/Materials | Discovered exit to Materials (range 15) 1745 | -10/Materials | Entered Mines 1759 | -10/Mines | Assembled infested the area 1789 | -10/Mines | Assisted by bots powering up and referring to "LRC-V3" 1795 | -10/Mines | Learned location of Storage (-8) 1795 | -10/Mines | Discovered exit to Materials (range 7) 2113 | -10/Mines | Found a Scrap Suit stashed away for nefarious purposes 2188 | -10/Mines | Discovered exit to Materials (range 6) 2247 | -10/Mines | Identified exit to Subcaves 2247 | -10/Mines | Discovered exit to Subcaves (range 10) 2288 | -10/Mines | Entered Subcaves 2288 | -10/Subcaves | Accompanied by 3 allies 2289 | -10/Subcaves | Approached by a straggling Scientist 2311 | -10/Subcaves | Visited 4L-MR0's lab 2406 | -10/Subcaves | Identified exit to Materials 2406 | -10/Subcaves | Discovered exit to Materials (range 8) 2465 | -10/Subcaves | Visited Clippyterm 2466 | -10/Subcaves | Identified exit to Recycling 2656 | -10/Subcaves | Disturbed a concealed Subdweller 2720 | -10/Subcaves | Core integrity fell below 50% 2758 | -10/Subcaves | Lost 4 parts (1p1n2w) 2866 | -10/Subcaves | Visited triangular shrine 2874 | -10/Subcaves | Found Prototype Device 2874 | -10/Subcaves | Identified V3-11A's Pendant 2879 | -10/Subcaves | Befriended Subdweller 3183 | -10/Subcaves | Found SUBCON Basin 3373 | -10/Subcaves | Ambushed by angry Subdweller bent on revenge 3374 | -10/Subcaves | Befriended Subdweller 3601 | -10/Subcaves | Core integrity fell below 20% 3602 | -10/Subcaves | Befriended Subdweller 3657 | -10/Subcaves | Befriended Subdweller 3657 | -10/Subcaves | Befriended Subdweller 3660 | -10/Subcaves | Shifting Twisted Machinery released Sub. Machine Gun 3662 | -10/Subcaves | Befriended Subdweller 3698 | -10/Subcaves | Shifting Twisted Machinery released Shrapnel Trap 4067 | -10/Subcaves | Befriended Subdweller 4485 | -10/Subcaves | Build established: Hauler-Mutant 5186 | -10/Subcaves | Found Powered Cannon 5292 | -10/Subcaves | Entered Recycling 5292 | -8/Recycling | Accompanied by 4 allies 5669 | -8/Recycling | Scanned before Scraplab entrance 5687 | -8/Recycling | Entered Scraplab 5935 | -8/Recycling | Identified exit to Factory 5935 | -8/Recycling | Discovered exit to Factory (range 15) 7864 | -8/Recycling | Identified exit to Scraptown 7864 | -8/Recycling | Discovered exit to Scraptown (range 2) 7884 | -8/Recycling | Entered Scraptown 7884 | -8/Scraptown | Accompanied by 5 allies 8054 | -8/Scraptown | Delivered V3-11A's Pendant to T0-NE2 in exchange for information 8606 | -8/Scraptown | Scanned Subdweller tech in exchange for log data 8693 | -8/Scraptown | Learned location of 1 exit from Factory 8696 | -8/Scraptown | Learned Research trap positions 8699 | -8/Scraptown | Learned location of Zion (-7) 8702 | -8/Scraptown | Learned Factory terminal intel 9818 | -8/Scraptown | Visited Scrapoid Research Area 9937 | -8/Scraptown | Visited CR-KLE's Repair Center 10008 | -8/Scraptown | Visited Assassins FH 10104 | -8/Scraptown | Visited Fellowship of the Rings 10188 | -8/Scraptown | Visited Cyclists 10361 | -8/Scraptown | Visited Cave Peace 10460 | -8/Scraptown | Visited Comm Corps 10789 | -8/Scraptown | Discovered exit to Factory (range 13) 11708 | -8/Scraptown | CR-KLE repaired 7 parts 11888 | -8/Scraptown | Entered Factory 11888 | -6/Factory | Accompanied by 5 allies 11888 | -6/Factory | Evolved 8 slots: Power x1, Propulsion x2, Utility x4, Weapon x1 11889 | -6/Factory | Identified exit to Factory 11890 | -6/Factory | Loaded intel: 26 terminal locations 12064 | -6/Factory | Identified exit to Lower Caves 12064 | -6/Factory | Discovered exit to Lower Caves (range 6) 12173 | -6/Factory | Lost 5 allies 12188 | -6/Factory | Build established: Hauler-Gladiator 13150 | -6/Factory | Lost 4 parts (1p3n) 13258 | -6/Factory | Cargo convoy interrupted 13310 | -6/Factory | Lost 6 parts (2p2n2w) 13384 | -6/Factory | Core integrity fell below 50% 13451 | -6/Factory | Lost 4 parts (1u3w) 13682 | -6/Factory | Build established: Hauler-Mutant 13741 | -6/Factory | Lost 3 parts (1u2w) 14017 | -6/Factory | Build established: Hauler-Gunner 14346 | -6/Factory | Build established: Hauler-Tank 14606 | -6/Factory | Discovered exit to Factory (range 13) 14663 | -6/Factory | Build established: Scavenger-Tank 15125 | -6/Factory | Core integrity fell below 20% 15154 | -6/Factory | Lost 4 parts (3n1u) 15558 | -6/Factory | Build established: Hauler-Tank 16604 | -6/Factory | Entered Lower Caves 16636 | -6/Lower Caves | Build established: Scavenger-Tank 17818 | -6/Lower Caves | Identified exit to Lower Caves 17818 | -6/Lower Caves | Discovered exit to Lower Caves (range 13) 18149 | -6/Lower Caves | Encountered a Warlord checkpoint 18384 | -6/Lower Caves | Learned 4 Factory zone layouts 18629 | -6/Lower Caves | Attracted the attention of an 0b10 outpost 18655 | -6/Lower Caves | System corruption reached 10% 18685 | -6/Lower Caves | Lost 3 parts (2u1w) 19389 | -6/Lower Caves | Entered another Lower Caves area 19512 | -6/Lower Caves | Prototype Device suddenly appears! 19530 | -6/Lower Caves | Found Prototype Device 19530 | -6/Lower Caves | Identified Amulet of Y3-NDR 19570 | -6/Lower Caves | Attracted the attention of an 0b10 outpost 19686 | -6/Lower Caves | Destroyed by G-67 Veteran with Plasma Rifle Last Messages --------------- 19649_ 6J-OSO(k) breaks down the Adv. Heat Sink. 19652_ Dropped Carbon-fiber Leg. 19656_ 6J-OSO(k) breaks down the Carbon-fiber Leg. 19659_ Slug penetrates Wall. 19662_ 6J-OSO(k) breaks down the Lgt. Angular Momentum Engine. 19664_ Slug penetrates G-67 Veteran. 19664_ G-67 Veteran suffers critical hit (Destroy). 19664_ Destroyed Flexi-carbon Leg. 19664_ Slug penetrates Wall. 19667_ Destroyed Field Laser. 19667_ G-67 Veteran system corrupted by crushing effect. 19670_ System corrupted: Coil Gun jammed. 19670_ Slug penetrates G-67 Veteran. 19671_ 6J-OSO(k) destroyed. 19673_ DUT=79PPHH0SKRSBRCNJ,MRWFLJ/V,Z,K Map ----- +----------------------------------------------------+ | ?????????????????????????????????????????????????? | | ?????????????????????????????????????????????????? | | ?????????????????????????????????????????????????? | | ?????????????????????????????????????????????????? | | ?????????????????????????????????????????????????? | | ?????????????????????????????????????????????????? | | ?????????????????????????????????????????????????? | | ?????????????????????????????????????????????????? | | ?????????????????????????????????????????????????? | | ?????????????????????????????????????????????????? | | ?????????????????????????????????????????????????? | | ?????????????????????????????????????????????????? | | ?????????????????????????????????????????????????? | | ?????????????????????????????##??????????????????? | | ????????????????????????????# ???????????????????? | | ??????????????????????????## ???????????????????? | | ?????????????????????????? % ???????????????????? | | ??????????????????????????# #???????????????????? | | ??????????????????????????# %##??????????????????? | | ??????????????????????????# ???????????????????? | | ??????????????????????????# ??????#?????????????? | | ?????????????? ????????#### #????? #?????????????? | | ??????????????? %??????+ # #????? #?????????????? | | ????????????????? ?????# i #????? #?????????????? | | ???????????????# #####g*=!#????? #?????????????? | | ?????????????????# = g@* #????? ####??????????? | | ?????????????????####% ###g##?#### #??????????? | | ???????????????????# ###[#### #??????????? | | ???????????????????### !! ## #??##??????? | | ????????????????????# %!/% #??## ##????? | | ????????????????????# %### #?## #????? | | ????????????????????## # ##?## ## ### #####? | | ?????????????????????# ###????# ##???? ## | | ?????????????????????# ???????## #??????# # | | ?????????????????????#?????????# #???????# # | | ?????????????????????# ######### #???????# #? | | ?????????????????????# # ##??????# [ #?? | | ????????????????????????????# ######## [ ##?? | | ??????????????????????####### # [#??? | | ??????????????????????# #### #??? | | ??????????????????????# ! ####??# #??? | | ??????????????? #### # ##?????## #??? | | ??????????? ######??# # #???????# ##??? | | ?????????????????????????# # ##???????# #???? | | ?????????????????????????# # ## #????????# ##??# | | ?????????????????????????# #?# #???????## #### | | ?????????????????????????# #??# #???????# | | ?????????????????????????# ???# ???????## | | ????????????????????????? ????#####???????## | | ???????????????????????? ??????????????????# ### | +----------------------------------------------------+ Best States ------------- Heat Dissipation 75 Energy Generation 32 Energy Capacity 500 Matter Stores 300 Matter Capacity 300 Sight Range 16 Robot Scan Range 16 Terrain Scan Range 16 Terrain Scan Density 10 Additional Mass Support 12 Corruption Containment 8 Armor Coverage 450 Resistance: KI 35 Resistance: TH 35 Resistance: EX 35 Resistance: EM 60 Resistance: I 35 Resistance: S 35 Resistance: P 35 Core Shielding 30 Evasion (%) 63 Melee Accuracy 11 Recoil Reduction 5 Offensive Hacking 20 Defensive Hacking 11 Authchip Count 2 Item Schematics ----------------- Field Laser | -8/Recycling | Hacked Lgt. Humpback | -6/Factory | Scanalyzed Robot Schematics ------------------ None Fabricated ------------ Nothing Repaired ---------- Nothing Studied --------- None Alien Tech Used ----------------- None Achievements -------------- None Challenges ------------ None Game ------ Seed DamperHardenedMagmablaster Manual? 0 Play Time 01:14:07 Cumulative 193.3 hours Start 2025.12.12 @ 09:16:08 End 2025.12.12 @ 10:28:20 Sessions 1 Manual Loads 0 Difficulty Explorer Special Mode None Game No. 279 Rogue 0 Adventurer 0 Explorer 279 Win Type - Total 0 Types 0/0/0/0/0/0/0/0/0/0 Lore% 71 Gallery% 67 Achievement% 53 Wizard Run 0 Options --------- Layout 1 ASCII 0 Keyboard 0 Movement Mouse Keybinds 0 Fullscreen 1 Font 24/Smallcaps Map View 50x35 Zoom Use 0% Tactical HUD 1 Map Filters NONE Filters NONE Steam 1 RUN: a838fb60-2edb-46e6-8e4e-cfcab4ea928e